bitfinex/quotes_BTCUSD_20250328
["timestamp","ask_amount","ask_price","bid_price","bid_amount"]
[1743130644887,0.000339,87104.0,87099.0,0.0001694]
[1743130648720,0.300339,87104.0,87099.0,0.0001694]
[1743130648922,0.01800085,87103.0,87099.0,0.0001694]
[1743130649851,0.3,87102.0,87099.0,0.0001694]
[1743130653073,0.31148,87102.0,87099.0,0.0001694]
[1743130655299,0.311819,87104.0,87099.0,0.0001694]
[1743130655917,0.300339,87104.0,87099.0,0.0001694]
[1743130656850,0.000339,87104.0,87099.0,0.0001694]
[1743130657412,0.000339,87104.0,87100.0,0.0781]
[1743130660221,0.000339,87104.0,87101.0,0.0475]
[1743130667991,0.000339,87104.0,87099.0,0.0001694]
[1743130667992,0.311481,87100.0,87099.0,0.0001694]
[1743130668168,1.954598,87100.0,87099.0,0.0001694]
[1743130668411,1.835188,87100.0,87099.0,0.0001694]
[1743130668947,1.869735,87100.0,87099.0,0.0001694]
[1743130669146,1.835188,87100.0,87099.0,0.0001694]
[1743130670563,1.94944564,87100.0,87099.0,0.0001694]
[1743130671603,1.98396267,87100.0,87099.0,0.0001694]
[1743130672313,1.94944564,87100.0,87099.0,0.0001694]
[1743130672555,1.98395378,87100.0,87099.0,0.0001694]
[1743130674065,2.04569463,87100.0,87099.0,0.0001694]
[1743130674264,2.08147038,87100.0,87099.0,0.0001694]
[1743130674595,2.11596358,87100.0,87099.0,0.0001694]
[1743130675550,4.63689558,87100.0,87099.0,0.0001694]
[1743130675810,4.45989458,87100.0,87099.0,0.0001694]
[1743130676593,4.62316969,87100.0,87099.0,0.0001694]
[1743130676795,4.18171269,87100.0,87099.0,0.0001694]
[1743130677315,3.83379769,87100.0,87099.0,0.0001694]
[1743130677513,3.85180138,87100.0,87099.0,0.0001694]
[1743130677715,3.66996738,87100.0,87099.0,0.0001694]
[1743130677864,3.67196738,87100.0,87099.0,0.0001694]
[1743130678643,3.28408338,87100.0,87099.0,0.0001694]
[1743130678827,3.24959018,87100.0,87099.0,0.0001694]
[1743130678973,3.24463218,87100.0,87099.0,0.0001694]
[1743130686110,3.22662849,87100.0,87099.0,0.0001694]
[1743130687491,3.24463151,87100.0,87099.0,0.0001694]
[1743130687879,3.19369651,87100.0,87099.0,0.0001694]
[1743130688117,3.14649651,87100.0,87099.0,0.0001694]
[1743130688297,3.14749651,87100.0,87099.0,0.0001694]
[1743130689401,3.14849651,87100.0,87099.0,0.0001694]
[1743130690105,3.07239651,87100.0,87099.0,0.0001694]
[1743130690572,3.03731451,87100.0,87099.0,0.0001694]
[1743130692059,2.90963451,87100.0,87099.0,0.0001694]
[1743130692271,3.03731451,87100.0,87099.0,0.0001694]
[1743130694355,1.98340402,87100.0,87099.0,0.0001694]
[1743130694554,2.02479802,87100.0,87099.0,0.0001694]
[1743130695787,1.42871802,87100.0,87099.0,0.0001694]
[1743130696574,1.08683502,87100.0,87099.0,0.0001694]
[1743130696780,1.10215402,87100.0,87099.0,0.0001694]
[1743130696980,0.87686402,87100.0,87099.0,0.0001694]
[1743130698808,0.87720302,87100.0,87099.0,0.0001694]
[1743130699169,0.74952302,87100.0,87099.0,0.0001694]
[1743130699390,0.87720302,87100.0,87099.0,0.0001694]
[1743130701842,0.74952302,87100.0,87099.0,0.0001694]
[1743130705028,0.33182302,87100.0,87099.0,0.0001694]
[1743130705469,0.33182302,87100.0,87099.0,0.0797694]
[1743130705470,0.02034202,87100.0,87099.0,0.0797694]
[1743130705769,0.002339,87100.0,87099.0,0.0797694]
[1743130708042,0.56144255,87100.0,87099.0,0.0797694]
[1743130708177,0.32034055,87100.0,87099.0,0.0797694]
[1743130708379,0.302339,87100.0,87099.0,0.0797694]
[1743130710575,0.302339,87100.0,87099.0,0.0001694]
[1743130710725,0.33484005,87100.0,87099.0,0.0001694]
[1743130710932,0.34632105,87100.0,87099.0,0.0001694]
[1743130711355,0.33484005,87100.0,87099.0,0.0001694]
[1743130711670,0.302339,87100.0,87099.0,0.0001694]
[1743130712978,0.31382,87100.0,87099.0,0.0001694]
[1743130715600,2.997574,87100.0,87099.0,0.0001694]
[1743130715961,3.12637249,87100.0,87099.0,0.0001694]
[1743130716367,3.01396049,87100.0,87099.0,0.0001694]
[1743130716769,3.43166049,87100.0,87099.0,0.0001694]
[1743130718616,3.41195649,87100.0,87099.0,0.0001694]
[1743130719040,2.56860949,87100.0,87099.0,0.0001694]
[1743130719223,2.22540949,87100.0,87099.0,0.0001694]
[1743130719385,2.17320849,87100.0,87099.0,0.0001694]
[1743130720783,2.19121093,87100.0,87099.0,0.0001694]
[1743130721434,2.47537693,87100.0,87099.0,0.0001694]
[1743130721588,2.24081993,87100.0,87099.0,0.0001694]
[1743130721939,0.541117,87094.0,87093.0,0.00383819]
[1743130722141,1.644032,87094.0,87093.0,0.00388272]
[1743130723381,1.79079069,87094.0,87093.0,0.00388272]
[1743130723584,1.79924669,87094.0,87093.0,0.00388272]
[1743130724589,1.76674564,87094.0,87093.0,0.00388272]
[1743130730573,1.79011842,87094.0,87093.0,0.00388272]
[1743130730877,1.91779842,87094.0,87093.0,0.00388272]
[1743130731169,1.95226988,87094.0,87093.0,0.00388272]
[1743130731571,1.96681073,87094.0,87093.0,0.00388272]
[1743130731778,2.04271073,87094.0,87093.0,0.00388272]
[1743130732068,2.46041073,87094.0,87093.0,0.00388272]
[1743130732293,2.57466837,87094.0,87093.0,0.00388272]
[1743130734267,2.57566837,87094.0,87093.0,0.00388272]
[1743130734470,2.57666837,87094.0,87093.0,0.00388272]
[1743130734917,2.57566837,87094.0,87093.0,0.00388272]
[1743130735157,2.57466837,87094.0,87093.0,0.00405212]
[1743130735348,2.57666837,87094.0,87093.0,0.00405212]
[1743130735526,2.57800717,87094.0,87093.0,0.00405212]
[1743130736764,2.57700717,87094.0,87093.0,0.00405212]
[1743130737131,2.57900717,87094.0,87093.0,0.00405212]
[1743130737972,2.57700717,87094.0,87093.0,0.00405212]
[1743130738400,2.58000717,87094.0,87093.0,0.00405212]
[1743130738549,1.49509761,87094.0,87093.0,0.00405212]
[1743130738767,3.00293297,87094.0,87093.0,0.00405212]
[1743130738966,2.02657266,87094.0,87093.0,0.00405212]
[1743130739171,1.54508466,87094.0,87093.0,0.00405212]
[1743130739435,1.37297966,87094.0,87093.0,0.00405212]
[1743130744648,1.35497422,87094.0,87093.0,0.00405212]
[1743130746454,1.36951507,87094.0,87093.0,0.00405212]
[1743130746614,1.40201612,87094.0,87093.0,0.00405212]
[1743130747235,1.36951507,87094.0,87093.0,0.00405212]
[1743130747596,1.46811932,87094.0,87093.0,0.00405212]
[1743130751411,1.35106732,87094.0,87093.0,0.00405212]
[1743130751613,3.71684532,87094.0,87093.0,0.00405212]
[1743130752526,3.53684532,87094.0,87093.0,0.00405212]
[1743130752834,3.35684532,87094.0,87093.0,0.00405212]
[1743130754484,3.33884107,87094.0,87093.0,0.00405212]
[1743130756443,3.37331604,87094.0,87093.0,0.00405212]
[1743130757053,1.03045955,87094.0,87093.0,0.00405212]
[1743130757260,1.11516858,87094.0,87093.0,0.00405212]
[1743130757457,0.98752858,87094.0,87093.0,0.00405212]
[1743130757667,1.00553246,87094.0,87093.0,0.00405212]
[1743130762055,0.76441546,87094.0,87093.0,0.08405212]
[1743130763181,0.76441546,87094.0,87093.0,0.00405212]
[1743130763182,1.00553246,87094.0,87093.0,0.00405212]
[1743130763385,1.03803351,87094.0,87093.0,0.00405212]
[1743130764123,1.1197901,87094.0,87093.0,0.00405212]
[1743130768956,0.98752858,87094.0,87093.0,0.00405212]
[1743130769211,1.11516858,87094.0,87093.0,0.00405212]
[1743130769419,1.13317153,87094.0,87093.0,0.00405212]
[1743130773493,0.241148,87084.0,87080.0,0.08082152]
[1743130773717,0.241148,87084.0,87080.0,0.08126641]
[1743130774519,0.25915155,87084.0,87080.0,0.08126641]
[1743130774679,0.02948655,87084.0,87080.0,0.08126641]
[1743130775189,0.25914955,87084.0,87080.0,0.08126641]
[1743130775393,0.229669,87082.0,87080.0,0.08126641]
[1743130775591,0.241152,87082.0,87080.0,0.00044489]
[1743130776181,0.01154774,87082.0,87080.0,0.00044489]
[1743130776500,0.01800355,87084.0,87080.0,0.00044489]
[1743130776657,0.01800355,87084.0,87081.0,0.081]
[1743130777091,0.011482,87087.0,87081.0,0.081]
[1743130777291,0.3,87088.0,87081.0,0.081]
[1743130777655,0.311482,87088.0,87081.0,0.081]
[1743130778490,0.32302514,87088.0,87081.0,0.081]
[1743130778950,0.32402514,87088.0,87081.0,0.081]
[1743130779308,0.32502514,87088.0,87081.0,0.081]
[1743130780047,0.0180033,87087.0,87081.0,0.081]
[1743130781362,0.0190033,87087.0,87081.0,0.0811694]
[1743130781573,0.0200033,87087.0,87081.0,0.0811694]
[1743130787745,0.0200033,87087.0,87083.0,0.1297]
[1743130787941,0.0200033,87087.0,87084.0,0.19885385]
[1743130788455,0.0190033,87087.0,87084.0,0.19885385]
[1743130790297,0.0180033,87087.0,87084.0,0.19885385]
[1743130790702,0.0003388,87094.0,87084.0,0.19885385]
[1743130792232,0.0023388,87094.0,87084.0,0.19885385]
[1743130793907,0.0003388,87087.0,87084.0,0.19885385]
[1743130794507,0.01834091,87087.0,87084.0,0.19885385]
[1743130794706,0.0003388,87087.0,87084.0,0.19885385]
[1743130795562,0.0003388,87087.0,87084.0,0.19385385]
[1743130797314,0.0003388,87087.0,87084.0,0.11655385]
[1743130798077,0.0003388,87087.0,87084.0,0.11425764]
[1743130798230,0.0003388,87087.0,87085.0,0.00229608]
[1743130798434,0.0003388,87087.0,87086.0,0.11425764]
[1743130798699,0.0003388,87087.0,87086.0,0.19585764]
[1743130799107,0.0003388,87087.0,87086.0,0.19815373]
[1743130799284,0.0003388,87087.0,87086.0,0.19585764]
[1743130799480,0.0003388,87087.0,87086.0,0.19815373]
[1743130800747,0.0003388,87087.0,87086.0,0.19585764]
[1743130801146,0.0003388,87087.0,87086.0,0.19815378]
[1743130801913,0.0003388,87087.0,87086.0,0.24425378]
[1743130802137,0.0003388,87087.0,87086.0,0.24195764]
[1743130804815,0.0003388,87087.0,87086.0,0.24295764]
[1743130805835,0.0003388,87087.0,87086.0,0.001]
[1743130805972,0.2414758,87087.0,87086.0,0.001]
[1743130806171,0.10406843,87087.0,87086.0,0.001]
[1743130806370,0.34520543,87087.0,87086.0,0.001]
[1743130806669,0.35678595,87087.0,87086.0,0.001]
[1743130807074,0.40528595,87087.0,87086.0,0.001]
[1743130807522,0.94710359,87087.0,87086.0,0.001]
[1743130808100,0.011483,87085.0,87084.0,0.0001694]
[1743130808730,0.22966,87085.0,87084.0,0.0001694]
[1743130808934,0.64710359,87087.0,87084.0,0.0001694]
[1743130808935,0.03425043,87087.0,87084.0,0.0001694]
[1743130809114,0.01800479,87085.0,87084.0,0.0001694]
[1743130809326,0.01800479,87085.0,87084.0,0.0011694]
[1743130810129,0.02948779,87085.0,87084.0,0.0011694]
[1743130810874,0.02948779,87085.0,87084.0,0.0001694]
[1743130811279,0.02948779,87085.0,87084.0,0.0011694]
[1743130811619,0.02948779,87085.0,87084.0,0.0001694]
[1743130814693,0.011483,87085.0,87084.0,0.0001694]
[1743130819059,0.25914679,87085.0,87084.0,0.0001694]
[1743130820460,0.01800379,87085.0,87084.0,0.0001694]
[1743130821853,0.24766379,87085.0,87084.0,0.0001694]
[1743130823069,0.25914679,87085.0,87084.0,0.0001694]
[1743130823582,0.241143,87085.0,87084.0,0.0001694]
[1743130824313,0.011483,87085.0,87084.0,0.0001694]
[1743130824704,0.241143,87085.0,87084.0,0.0001694]
[1743130826931,0.25914677,87085.0,87084.0,0.0001694]
[1743130828857,0.25948557,87085.0,87084.0,0.0001694]
[1743130829045,0.01834257,87085.0,87084.0,0.0001694]
[1743130830054,0.24800257,87085.0,87084.0,0.0001694]
[1743130830272,0.01834257,87085.0,87084.0,0.0001694]
[1743130832995,0.01834257,87085.0,87084.0,0.00246592]
[1743130834593,0.0003388,87085.0,87084.0,0.00246592]
[1743130835060,0.0003388,87085.0,87084.0,0.0001694]
[1743130837554,0.25131038,87092.0,87084.0,0.0001694]
[1743130837746,0.01800234,87085.0,87084.0,0.0001694]
[1743130840972,0.01834114,87085.0,87084.0,0.0001694]
[1743130844458,0.0003388,87085.0,87084.0,0.0001694]
[1743130848965,0.01834112,87085.0,87084.0,0.0001694]
[1743130849902,0.0003388,87085.0,87084.0,0.0001694]
[1743130852450,0.0003388,87085.0,87084.0,0.00246571]
[1743130852451,0.01834106,87085.0,87084.0,0.00246571]
[1743130853842,0.01834106,87085.0,87084.0,0.00346571]
[1743130853979,0.01834106,87085.0,87084.0,0.0011694]
[1743130854534,0.0003388,87085.0,87084.0,0.0011694]
[1743130858210,0.0003388,87085.0,87084.0,0.1177233]
[1743130858985,0.0003388,87085.0,87084.0,0.1629233]
[1743130859382,0.0003388,87085.0,87084.0,0.2413233]
[1743130859587,0.0003388,87085.0,87084.0,0.23902704]
[1743130860147,0.0003388,87085.0,87084.0,0.23802704]
[1743130860408,0.0003388,87085.0,87084.0,0.24002704]
[1743130860544,0.0003388,87085.0,87084.0,0.16162704]
[1743130860750,0.0003388,87085.0,87084.0,0.16392312]
[1743130861017,0.0003388,87085.0,87084.0,0.16192312]
[1743130861228,0.0003388,87085.0,87084.0,0.16392312]
[1743130864412,0.0003388,87085.0,87084.0,0.16162704]
[1743130866058,0.0003388,87085.0,87084.0,0.16392311]
[1743130876985,0.0003388,87085.0,87084.0,0.29144311]
[1743130877311,0.0003388,87085.0,87084.0,0.28914704]
[1743130882601,0.0003388,87085.0,87084.0,0.16162704]
[1743130882809,0.0003388,87085.0,87084.0,0.29144301]
[1743130883023,0.0003388,87085.0,87084.0,0.28914704]
[1743130883173,0.0003388,87085.0,87084.0,0.29763196]
[1743130883917,0.0003388,87085.0,87084.0,0.59763196]
[1743130897561,0.00027569,87094.0,87085.0,0.3]
[1743130897756,0.00027569,87094.0,87087.0,0.3]
[1743130897963,0.00027569,87094.0,87089.0,0.3]
[1743130898159,0.00027569,87094.0,87090.0,0.11655358]
[1743130899855,0.0789,87093.0,87084.0,0.0001694]
[1743130900252,0.00027569,87094.0,87084.0,0.0001694]
[1743130900253,0.317143,87085.0,87084.0,0.0001694]
[1743130900458,0.366143,87085.0,87084.0,0.0001694]
[1743130900604,0.37779562,87085.0,87084.0,0.0001694]
[1743130901054,0.3958007,87085.0,87084.0,0.0001694]
[1743130903001,0.3958007,87085.0,87084.0,0.0021694]
[1743130903609,0.38414808,87085.0,87084.0,0.0001694]
[1743130903989,0.40727575,87085.0,87084.0,0.0001694]
[1743130904576,0.38927067,87085.0,87084.0,0.0001694]
[1743130904935,0.14812767,87085.0,87084.0,0.0001694]
[1743130905881,0.38927067,87085.0,87084.0,0.0001694]
[1743130907319,0.14812767,87085.0,87084.0,0.0001694]
[1743130907727,0.16613248,87085.0,87084.0,0.0001694]
[1743130908581,0.09400481,87085.0,87084.0,0.0001694]
[1743130914620,0.076,87085.0,87084.0,0.0001694]
[1743130915248,0.10049518,87090.0,87084.0,0.0001694]
[1743130916630,0.10149518,87090.0,87084.0,0.0001694]
[1743130917415,0.241132,87089.0,87084.0,0.0001694]
[1743130917585,0.011482,87089.0,87084.0,0.0001694]
[1743130917747,0.02948554,87089.0,87084.0,0.0001694]
[1743130918354,0.01800354,87089.0,87084.0,0.0001694]
[1743130918553,0.011483,87085.0,87084.0,0.0001694]
[1743130918778,0.088683,87085.0,87084.0,0.0001694]
[1743130920580,0.318343,87085.0,87084.0,0.0001694]
[1743130920783,0.088683,87085.0,87084.0,0.0001694]
[1743130920982,0.318343,87085.0,87084.0,0.0001694]
[1743130932526,0.088683,87085.0,87084.0,0.0001694]
[1743130932739,0.01800354,87089.0,87084.0,0.0001694]
[1743130934033,0.01900354,87089.0,87084.0,0.0001694]
[1743130934541,0.001,87089.0,87084.0,0.0001694]
[1743130935106,0.002,87089.0,87084.0,0.0001694]
[1743130938970,0.02351057,87093.0,87084.0,0.0001694]
[1743130939172,0.001,87089.0,87084.0,0.0001694]
[1743130939904,0.02351057,87093.0,87084.0,0.0001694]
[1743130940475,0.02551057,87093.0,87084.0,0.0001694]
[1743130940834,0.03699157,87093.0,87084.0,0.0001694]
[1743130941037,0.01800276,87091.0,87084.0,0.0001694]
[1743130942507,0.01900276,87091.0,87084.0,0.0001694]
[1743130942936,0.02000276,87091.0,87084.0,0.0001694]
[1743130944580,0.002,87091.0,87084.0,0.0001694]
[1743130944816,0.002,87091.0,87084.0,0.11672343]
[1743130944987,0.002,87091.0,87086.0,0.081]
[1743130945146,0.002,87091.0,87087.0,0.1165537]
[1743130945817,0.00027569,87094.0,87087.0,0.1165537]
[1743130949083,0.01827676,87094.0,87087.0,0.1165537]
[1743130949718,0.01827676,87094.0,87087.0,0.2440737]
[1743130949980,0.01827676,87094.0,87087.0,0.24177764]
[1743130951125,0.01827676,87094.0,87088.0,0.00229604]
[1743130951331,0.01827676,87094.0,87089.0,0.11425764]
[1743130951544,0.00027569,87094.0,87090.0,0.00229605]
[1743130951764,0.00027569,87094.0,87091.0,0.11425764]
[1743130951961,0.00027569,87094.0,87092.0,0.00229597]
[1743130952180,0.00027569,87094.0,87093.0,0.11425764]
[1743130954099,0.00027569,87094.0,87093.0,0.11625764]
[1743130954469,0.02303829,87094.0,87093.0,0.11625764]
[1743130955272,0.02303829,87094.0,87093.0,0.12055368]
[1743130955495,0.02303829,87094.0,87093.0,0.20365368]
[1743130955699,0.02303829,87094.0,87093.0,0.25175368]
[1743130955851,0.00027569,87094.0,87093.0,0.24945764]
[1743130956037,0.00027569,87094.0,87093.0,0.54945764]
[1743130957374,0.07860548,87123.0,87094.0,0.3]
[1743130957578,0.07860548,87123.0,87096.0,0.3]
[1743130957924,0.07860548,87123.0,87097.0,0.11655335]
[1743130958864,0.241047,87120.0,87098.0,0.12748]
[1743130959086,0.241047,87120.0,87099.0,0.11425764]
[1743130959292,0.011478,87119.0,87099.0,0.11425764]
[1743130959493,0.009,87123.0,87101.0,0.0815]
[1743130959667,0.009,87123.0,87102.0,0.11425764]
[1743130959871,0.02257326,87109.0,87102.0,0.11425764]
[1743130961718,0.02257326,87109.0,87103.0,0.00229566]
[1743130961920,0.02257326,87109.0,87104.0,0.11425764]
[1743130962505,0.02257326,87109.0,87105.0,0.00229565]
[1743130962697,0.02257326,87109.0,87106.0,0.11425764]
[1743130962926,0.02257326,87109.0,87107.0,0.00229565]
[1743130963106,0.02257326,87109.0,87108.0,0.11425764]
[1743130964098,0.02261766,87109.0,87108.0,0.11425764]
[1743130964859,0.02261766,87109.0,87108.0,0.11525764]
[1743130966134,0.02261766,87109.0,87108.0,0.11725764]
[1743130969878,0.02261766,87109.0,87108.0,0.11742694]
[1743130980622,0.02261766,87109.0,87108.0,0.0031693]
[1743130980829,0.15321766,87109.0,87108.0,0.0031693]
[1743130981100,0.17121552,87109.0,87108.0,0.0031693]
[1743130981411,0.14864226,87109.0,87108.0,0.0031693]
[1743130982258,0.16012126,87109.0,87108.0,0.0011693]
[1743130982525,0.38971826,87109.0,87108.0,0.0011693]
[1743130982731,0.38971826,87109.0,87108.0,0.0031693]
[1743130983558,0.38971826,87109.0,87108.0,0.0011693]
[1743130983759,0.39071826,87109.0,87108.0,0.0001693]
[1743130984294,0.39071826,87109.0,87108.0,0.0011693]
[1743130984459,0.39071826,87109.0,87108.0,0.0001693]
[1743130984640,0.3737204,87109.0,87108.0,0.0001693]
[1743130988976,0.39172002,87109.0,87108.0,0.0001693]
[1743130990413,0.63341766,87109.0,87108.0,0.0001693]
[1743130990621,3.32541566,87109.0,87108.0,0.0001693]
[1743130990826,2.58314166,87109.0,87108.0,0.0001693]
[1743130991145,2.29351066,87109.0,87108.0,0.0001693]
[1743130991505,2.29251066,87109.0,87108.0,0.0001693]
[1743130991704,2.29151066,87109.0,87108.0,0.0001693]
[1743130991910,2.29351066,87109.0,87108.0,0.0001693]
[1743130992113,2.29451066,87109.0,87108.0,0.0001693]
[1743130992332,2.28433166,87109.0,87108.0,0.0001693]
[1743130992662,2.28333166,87109.0,87108.0,0.0001693]
[1743130992963,2.28533166,87109.0,87108.0,0.0001693]
[1743130993890,2.21564966,87109.0,87108.0,0.0001693]
[1743130995382,2.23019051,87109.0,87108.0,0.0001693]
[1743130996578,2.51219089,87109.0,87108.0,0.0001693]
[1743130997574,2.51019089,87109.0,87108.0,0.0001693]
[1743130997781,2.50819089,87109.0,87108.0,0.0001693]
[1743130997992,2.51119089,87109.0,87108.0,0.0001693]
[1743130998341,2.51219089,87109.0,87108.0,0.0001693]
[1743130998522,2.39546289,87109.0,87108.0,0.0001693]
[1743130998735,2.40046289,87109.0,87108.0,0.0001693]
[1743130998944,2.40546289,87109.0,87108.0,0.0001693]
[1743130999581,2.42346579,87109.0,87108.0,0.0001693]
[1743131001248,2.84116579,87109.0,87108.0,0.0001693]
[1743131002636,1.37366179,87109.0,87108.0,0.0001693]
[1743131002829,1.35916094,87109.0,87108.0,0.0001693]
[1743131003160,1.83583194,87109.0,87108.0,0.0001693]
[1743131004602,1.81782904,87109.0,87108.0,0.0001693]
[1743131007809,1.83583122,87109.0,87108.0,0.0001693]
[1743131016617,2.67716222,87109.0,87108.0,0.0001693]
[1743131017016,1.53050922,87109.0,87108.0,0.0001693]
[1743131017419,1.5295449,87109.0,87108.0,0.0001693]
[1743131018532,1.51154272,87109.0,87108.0,0.0001693]
[1743131021259,1.4994737,87109.0,87108.0,0.0001693]
[1743131021539,1.4930097,87109.0,87108.0,0.0001693]
[1743131022790,1.3581957,87109.0,87108.0,0.0001693]
[1743131022987,1.4945957,87109.0,87108.0,0.0001693]
[1743131025008,0.68677798,87109.0,87108.0,0.0001693]
[1743131025753,0.668776,87109.0,87108.0,0.0001693]
[1743131026548,0.663776,87109.0,87108.0,0.0001693]
[1743131026953,0.667776,87109.0,87108.0,0.0001693]
[1743131027563,0.662776,87109.0,87108.0,0.0001693]
[1743131027886,0.667776,87109.0,87108.0,0.0001693]
[1743131029954,0.68577671,87109.0,87108.0,0.0001693]
[1743131030441,0.26807671,87109.0,87108.0,0.0001693]
[1743131030651,0.26841551,87109.0,87108.0,0.0001693]
[1743131034769,0.2504148,87109.0,87108.0,0.0001693]
[1743131039292,0.26841541,87109.0,87108.0,0.0001693]
[1743131044534,0.3291148,87109.0,87108.0,0.0001693]
[1743131045634,0.44337244,87109.0,87108.0,0.0001693]
[1743131047738,0.46137341,87109.0,87108.0,0.0001693]
[1743131048117,0.51011341,87109.0,87108.0,0.0001693]
[1743131048310,0.39585577,87109.0,87108.0,0.0001693]
[1743131049213,0.26841577,87109.0,87108.0,0.0001693]
[1743131049412,0.39585577,87109.0,87108.0,0.0001693]
[1743131053586,0.26841577,87109.0,87108.0,0.0001693]
[1743131055624,0.03881877,87109.0,87108.0,0.0001693]
[1743131057698,0.0208178,87109.0,87108.0,0.0001693]
[1743131058610,0.03881826,87109.0,87108.0,0.0001693]
[1743131059043,0.0208178,87109.0,87108.0,0.0001693]
[1743131059382,0.03881826,87109.0,87108.0,0.0001693]
[1743131059597,0.03481826,87109.0,87108.0,0.0001693]
[1743131059796,0.02981826,87109.0,87108.0,0.0001693]
[1743131059999,0.03681826,87109.0,87108.0,0.0001693]
[1743131060240,0.03381826,87109.0,87108.0,0.0001693]
[1743131060535,0.03281826,87109.0,87108.0,0.0001693]
[1743131061055,0.03681826,87109.0,87108.0,0.0001693]
[1743131064881,0.0073388,87109.0,87108.0,0.0001693]
[1743131065828,0.0043388,87109.0,87108.0,0.0001693]
[1743131066291,0.0033388,87109.0,87108.0,0.0001693]
[1743131066769,0.0063388,87109.0,87108.0,0.0769693]
[1743131067350,0.0033388,87109.0,87108.0,0.0769693]
[1743131067582,0.0023388,87109.0,87108.0,0.0769693]
[1743131067787,0.0043388,87109.0,87108.0,0.0769693]
[1743131067993,0.02233755,87109.0,87108.0,0.0769693]
[1743131072813,0.01833755,87109.0,87108.0,0.0769693]
[1743131073051,0.01933755,87109.0,87108.0,0.0769693]
[1743131073238,0.02033755,87109.0,87108.0,0.0769693]
[1743131074665,0.0023388,87109.0,87108.0,0.0769693]
[1743131081277,0.0023388,87109.0,87108.0,0.0001693]
[1743131081554,0.2434148,87109.0,87108.0,0.0001693]
[1743131081767,2.79894318,87109.0,87108.0,0.0001693]
[1743131082314,2.79794318,87109.0,87108.0,0.0001693]
[1743131082752,2.79994318,87109.0,87108.0,0.0001693]
[1743131083169,2.79694318,87109.0,87108.0,0.0001693]
[1743131083563,2.79994318,87109.0,87108.0,0.0001693]
[1743131083880,2.76944229,87109.0,87108.0,0.0001693]
[1743131084313,2.76744229,87109.0,87108.0,0.0001693]
[1743131084710,2.77044229,87109.0,87108.0,0.0001693]
[1743131085461,2.77911119,87109.0,87108.0,0.0001693]
[1743131086194,3.19681119,87109.0,87108.0,0.0001693]
[1743131087748,3.21481362,87109.0,87108.0,0.0001693]
[1743131088235,1.37518462,87109.0,87108.0,0.0001693]
[1743131088412,4.88963362,87109.0,87108.0,0.0001693]
[1743131088609,4.87669862,87109.0,87108.0,0.0001693]
[1743131089028,4.30175162,87109.0,87108.0,0.0001693]
[1743131089238,4.33425251,87109.0,87108.0,0.0001693]
[1743131089442,4.30175162,87109.0,87108.0,0.0001693]
[1743131089820,4.30475162,87109.0,87108.0,0.0001693]
[1743131090015,4.29875162,87109.0,87108.0,0.0001693]
[1743131090270,4.22444462,87109.0,87108.0,0.0001693]
[1743131090466,4.23444462,87109.0,87108.0,0.0001693]
[1743131090656,4.22944462,87109.0,87108.0,0.0001693]
[1743131091819,4.23444462,87109.0,87108.0,0.0001693]
[1743131091995,4.22944462,87109.0,87108.0,0.0001693]
[1743131092213,4.23444462,87109.0,87108.0,0.0001693]
[1743131092353,4.20114162,87109.0,87108.0,0.0001693]
[1743131094564,4.18313919,87109.0,87108.0,0.0001693]
[1743131096852,4.15762819,87109.0,87108.0,0.0001693]
[1743131099570,4.13179219,87109.0,87108.0,0.0001693]
[1743131101683,4.31023762,87109.0,87108.0,3e-07]
[1743131101886,0.320026,87091.0,87090.0,0.0001694]
[1743131102092,1.78990649,87091.0,87090.0,0.0001694]
[1743131102322,1.59597349,87091.0,87090.0,0.0001694]
[1743131102680,1.61397761,87091.0,87090.0,0.0001694]
[1743131102886,0.59426861,87091.0,87090.0,0.0001694]
[1743131103087,0.91129161,87091.0,87090.0,0.0001694]
[1743131103924,0.93440592,87091.0,87090.0,0.0001694]
[1743131104324,1.2450219,87091.0,87090.0,0.0001694]
[1743131104525,1.22701778,87091.0,87090.0,0.0001694]
[1743131104726,1.22901778,87091.0,87090.0,0.0001694]
[1743131104948,1.22801778,87091.0,87090.0,0.0001694]
[1743131105345,1.22901778,87091.0,87090.0,0.0001694]
[1743131107657,1.24702234,87091.0,87090.0,0.0001694]
[1743131108245,1.11958234,87091.0,87090.0,0.0001694]
[1743131108440,1.24702234,87091.0,87090.0,0.0001694]
[1743131111175,1.11958234,87091.0,87090.0,0.0001694]
[1743131111378,1.24702234,87091.0,87090.0,0.0001694]
[1743131113587,0.93099934,87091.0,87090.0,0.0001694]
[1743131113862,1.86436134,87091.0,87090.0,0.0001694]
[1743131114655,1.84635678,87091.0,87090.0,0.0001694]
[1743131115181,1.92742473,87091.0,87090.0,0.0001694]
[1743131115930,1.84635678,87091.0,87090.0,0.0001694]
[1743131117660,1.86436176,87091.0,87090.0,0.0001694]
[1743131118021,1.78546176,87091.0,87090.0,0.0001694]
[1743131122084,1.86246176,87091.0,87090.0,0.0001694]
[1743131122465,1.89690002,87091.0,87090.0,0.0001694]
[1743131122604,1.89590002,87091.0,87090.0,0.0001694]
[1743131123009,1.89790002,87091.0,87090.0,0.0001694]
[1743131123702,1.9245609,87091.0,87090.0,0.0001694]
[1743131123837,1.9235609,87091.0,87090.0,0.0001694]
[1743131124235,1.89112264,87091.0,87090.0,0.0001694]
[1743131124440,2.28216176,87091.0,87090.0,0.0001694]
[1743131124646,2.29859102,87091.0,87090.0,0.0001694]
[1743131125379,2.26415678,87091.0,87090.0,0.0001694]
[1743131127707,2.28216301,87091.0,87090.0,0.0001694]
[1743131128530,2.28416301,87091.0,87090.0,0.0001694]
[1743131131660,2.31660303,87091.0,87090.0,0.0001694]
[1743131131895,2.31260303,87091.0,87090.0,0.0001694]
[1743131132066,2.43086067,87091.0,87090.0,0.0001694]
[1743131133694,2.42886067,87091.0,87090.0,0.0001694]
[1743131134059,2.43186067,87091.0,87090.0,0.0001694]
[1743131134312,2.42986067,87091.0,87090.0,0.0001694]
[1743131134545,2.41185444,87091.0,87090.0,0.0001694]
[1743131134821,2.41485444,87091.0,87090.0,4e-07]
[1743131135018,1.48149244,87091.0,87090.0,4e-07]
[1743131135560,1.47849244,87091.0,87090.0,4e-07]
[1743131136005,1.48349244,87091.0,87090.0,4e-07]
[1743131137678,1.48049244,87091.0,87090.0,4e-07]
[1743131137875,1.48449244,87091.0,87090.0,4e-07]
[1743131139182,1.50249988,87091.0,87090.0,4e-07]
[1743131140293,1.60496234,87091.0,87090.0,4e-07]
[1743131140497,1.59996234,87091.0,87090.0,4e-07]
[1743131140698,1.59596234,87091.0,87090.0,4e-07]
[1743131140891,1.60096234,87091.0,87090.0,4e-07]
[1743131141194,1.60496234,87091.0,87090.0,4e-07]
[1743131141536,0.619743,87085.0,87084.0,8e-07]
[1743131141751,0.86448126,87085.0,87084.0,8e-07]
[1743131141947,1.28218126,87085.0,87084.0,8e-07]
[1743131143806,1.2939578,87085.0,87084.0,8e-07]
[1743131144252,1.21245805,87085.0,87084.0,8e-07]